fUSD/lending_fUSD_20241225
["ID","MTS","AMOUNT","RATE_DAILY","PERIOD"]
[346660429,1735158654709,-2150.04,0.00012801,2]
[346660430,1735158654718,-500.0,0.00012801,2]
[346660431,1735158654727,-2549.64,0.00012801,2]
[346660432,1735158654737,-11534.51,0.00012801,2]
[346660433,1735158654746,-825.73,0.00012801,2]
[346660434,1735158654756,-966.12,0.00012801,2]
[346660435,1735158654765,-500.0,0.00012801,2]
[346660436,1735158654774,-534.27,0.00012801,2]
[346660437,1735158654784,-500.0,0.00012801,2]
[346660438,1735158654794,-1538.83,0.00012801,2]
[346660439,1735158654803,-500.0,0.00012801,2]
[346660440,1735158654812,-8815.65,0.00012801,2]
[346660441,1735158654821,-499.04,0.00012801,2]
[346660442,1735158654831,-500.0,0.00012801,2]
[346660443,1735158654840,-1084.65,0.00012801,2]
[346660444,1735158654850,-935.35,0.00012801,2]
[346660445,1735158654860,-575.56,0.00012801,2]
[346660446,1735158654869,-518.66,0.00012801,2]
[346660447,1735158654879,-1232.29,0.00012801,2]
[346660448,1735158654889,-500.0,0.00012801,2]
[346660449,1735158654898,-500.0,0.00012801,2]
[346660450,1735158654908,-1000.0,0.00012801,2]
[346660451,1735158654917,-777.24,0.00012801,2]
[346660452,1735158654926,-829.41,0.00012801,2]
[346660453,1735158654935,-1758.38,0.00012801,2]
[346660454,1735158654944,-500.0,0.00012801,2]
[346660455,1735158654955,-926.27,0.00012801,2]
[346660456,1735158654965,-500.0,0.00012801,2]
[346660457,1735158654975,-500.0,0.00012801,2]
[346660458,1735158654985,-500.0,0.00012801,2]
[346660459,1735158654994,-500.0,0.00012801,2]
[346660460,1735158655003,-500.0,0.00012802,2]
[346660461,1735158655013,-500.0,0.00012802,2]
[346660462,1735158655023,-500.0,0.00012802,2]
[346660463,1735158655033,-505.75,0.00012802,2]
[346660464,1735158655043,-500.0,0.00012802,2]
[346660465,1735158655052,-500.0,0.00012802,2]
[346660466,1735158655062,-500.0,0.00012802,2]
[346660467,1735158655071,-500.0,0.00012802,2]
[346660468,1735158655081,-500.0,0.00012802,2]
[346660469,1735158655090,-500.0,0.00012802,2]
[346660470,1735158655100,-500.0,0.00012802,2]
[346660471,1735158655109,-500.0,0.00012802,2]
[346660472,1735158655119,-500.0,0.00012802,2]
[346660473,1735158655128,-500.0,0.00012802,2]
[346660474,1735158655138,-500.0,0.00012802,2]
[346660475,1735158655147,-500.0,0.00012802,2]
[346660476,1735158655156,-500.0,0.00012802,2]
[346660477,1735158655165,-500.0,0.00012802,2]
[346660478,1735158655174,-500.0,0.00012802,2]
[346660479,1735158655184,-500.0,0.00012802,2]
[346660480,1735158655194,-500.0,0.00012802,2]
[346660481,1735158655203,-375.41,0.00012802,2]
[346660482,1735158655212,-500.0,0.00012802,2]
[346660483,1735158655222,-353.13,0.00012802,2]
[346660484,1735158655231,-500.0,0.00012802,2]
[346660485,1735158655240,-500.0,0.00012802,2]
[346660486,1735158655249,-500.0,0.00012802,2]
[346660487,1735158655259,-500.0,0.00012802,2]
[346660488,1735158655269,-2102.972,0.00012802,2]
[346660489,1735158655278,-158.414,0.00012802,2]
[346660490,1735158655288,-500.0,0.00012802,2]
[346660491,1735158655297,-500.0,0.00012802,2]
[346660492,1735158655307,-500.0,0.00012802,2]
[346660493,1735158655316,-500.0,0.00012802,2]
[346660494,1735158655326,-500.0,0.00012802,2]
[346660495,1735158655335,-500.0,0.00012802,2]
[346660496,1735158655344,-500.0,0.00012802,2]
[346660497,1735158655354,-396.52,0.00012802,2]
[346660498,1735158655363,-500.0,0.00012802,2]
[346660499,1735158655372,-500.0,0.00012802,2]
[346660500,1735158655381,-500.0,0.00012802,2]
[346660501,1735158655391,-500.0,0.00012802,2]
[346660502,1735158655401,-500.0,0.00012802,2]
[346660503,1735158655410,-151.0,0.00012802,2]
[346660504,1735158655419,-151.0,0.00012802,2]
[346660505,1735158655428,-500.0,0.00012802,2]
[346660506,1735158655438,-500.0,0.00012802,2]
[346660507,1735158655448,-500.0,0.00012802,2]
[346660508,1735158655459,-747.69,0.00012802,2]
[346660509,1735158655468,-500.0,0.00012802,2]
[346660510,1735158655478,-500.0,0.00012802,2]
[346660511,1735158655487,-553.67,0.00012802,2]
[346660512,1735158655498,-500.0,0.00012802,2]
[346660513,1735158655507,-500.0,0.00012802,2]
[346660514,1735158655517,-500.0,0.00012802,2]
[346660515,1735158655527,-500.0,0.00012802,2]
[346660516,1735158655536,-826.26,0.00012802,2]
[346660517,1735158655545,-500.0,0.00012802,2]
[346660518,1735158655556,-500.0,0.00012802,2]
[346660519,1735158655565,-237.88,0.00012802,2]
[346660520,1735158655575,-500.0,0.00012802,2]
[346660521,1735158655584,-500.0,0.00012802,2]
[346660522,1735158655594,-500.0,0.00012802,2]
[346660523,1735158655603,-151.0,0.00012802,2]
[346660524,1735158655614,-265.17,0.00012802,2]
[346660525,1735158655623,-500.0,0.00012802,2]
[346660526,1735158655637,-500.0,0.00012802,2]
[346660527,1735158655647,-181.01392962,0.00012802,2]
[346660528,1735158655657,-490.22684176,0.00012803,2]
[346660529,1735158655666,-500.0,0.00012803,2]
[346660530,1735158655676,-1302.04,0.00012803,2]
[346660531,1735158655685,-500.0,0.00012803,2]
[346660532,1735158655694,-500.0,0.00012803,2]
[346660533,1735158655704,-500.0,0.00012803,2]
[346660534,1735158655715,-500.0,0.00012803,2]
[346660535,1735158655724,-500.0,0.00012803,2]
[346660536,1735158655734,-500.0,0.00012803,2]
[346660537,1735158655743,-500.0,0.00012803,2]
[346660538,1735158655753,-586.38,0.00012803,2]
[346660539,1735158655763,-500.0,0.00012803,2]
[346660540,1735158655772,-500.0,0.00012803,2]
[346660541,1735158655782,-500.0,0.00012803,2]
[346660542,1735158655791,-500.0,0.00012803,2]
[346660543,1735158655801,-500.0,0.00012803,2]
[346660544,1735158655811,-4523.34109135,0.00012847,2]
[346660545,1735158655821,-20163.98076634,0.00012851,2]
[346660546,1735158655830,-151.0,0.00012851,2]
[346660547,1735158655840,-276.36133342,0.00012876,2]
[346660548,1735158655850,-2882.05297669,0.00012885,2]
[346660549,1735158655860,-1500.0,0.0001289,2]
[346660550,1735158655870,-3264.05,0.00012893,2]
[346660551,1735158655880,-150.99,0.00012893,2]
[346660552,1735158655890,-176.13497658,0.00012899,2]
[346660553,1735158655899,-3876.3,0.000129,2]
[346660554,1735158655909,-151.0,0.000129,2]
[346660555,1735158655919,-160.80204962,0.000129,2]
[346660556,1735158655929,-4523.34109135,0.000129,2]
[346660557,1735158655938,-4810.0,0.00012959,2]
[346660558,1735158655948,-162.3786861,0.00012973,2]
[346660559,1735158655960,-500.0,0.00012976,2]
[346660560,1735158655969,-244.40194745,0.00012976,2]
[346660561,1735158655979,-500.0,0.00012976,2]
[346660562,1735158655989,-150.0,0.00012976,2]
[346660563,1735158655998,-500.0,0.00012976,2]
[346660564,1735158656008,-150.0,0.00012976,2]
[346660565,1735158656018,-3059.0,0.00012976,2]
[346660566,1735158656028,-1727.0,0.00012976,2]
[346660567,1735158656038,-150.0,0.00012976,2]
[346660568,1735158656048,-150.0,0.00012976,2]
[346660569,1735158656059,-150.0,0.00012976,2]
[346660570,1735158656069,-150.0,0.00012976,2]
[346660571,1735158656079,-150.0,0.00012976,2]
[346660572,1735158656089,-6621.05571871,0.0001298,2]
[346660573,1735158656104,-52979.90415979,0.0001298,2]
[346660574,1735158656123,-352.78174807,0.0001298,2]
[346660575,1735158656135,-74552.24274399,0.0001298,2]
[346660576,1735158656153,-9916.6,0.0001298,2]
[346660577,1735158656164,-1262.3237175,0.0001298,2]
[346660578,1735158656177,-4708.024704,0.0001298,2]
[346660579,1735158656188,-5249.28679669,0.0001298,2]
[346660580,1735158656200,-1868.53283797,0.0001298,2]
[346660581,1735158656215,-1836.16629,0.0001298,2]
[346660582,1735158656226,-679.30499915,0.0001298,2]
[346660583,1735158656245,-500.0,0.000128,2]
[346660584,1735158656254,-1438.45550524,0.0001298,2]
[346660585,1735158656583,-182.44171554,0.00012636,2]
[346660586,1735158656592,-3283.02820446,0.0001298,2]
[346660587,1735158656694,-23756.53650905,0.0001298,2]
[346660588,1735158656725,-4848.3864252,0.0001298,2]
[346660589,1735158656736,-501.71763007,0.0001298,2]
[346660590,1735158660232,401.99,0.00010137,2]
[346660591,1735158852798,3000.0,0.00024927,120]
[346660593,1735159348809,394.14,9.014e-05,2]
[346660594,1735159769137,-167.58,0.00010137,2]
[346660595,1735159769158,-941.75268997,0.00010839,2]
[346660596,1735159769178,-533.31263603,0.00010846,2]
[346660612,1735159831589,-408.44005394,0.00010846,2]
[346660613,1735159831598,-250.0,0.00010849,2]
[346660614,1735159831607,-250.0,0.0001087,2]
[346660615,1735159831616,-154.65,0.00010873,2]
[346660616,1735159831626,-1376.52,0.00010896,2]
[346660617,1735159831636,-919.63,0.00010939,2]
[346660618,1735159831644,-250.0,0.00010946,2]
[346660619,1735159831655,-352.95,0.00010964,2]
[346660620,1735159831665,-150.0,0.00010986,2]
[346660621,1735159831674,-163.33,0.00010992,2]
[346660622,1735159831685,-200.0,0.00010999,2]
[346660623,1735159831694,-367.61,0.00011014,2]
[346660624,1735159831703,-1000.0,0.0001112,2]
[346660625,1735159831712,-166.27,0.00011129,2]
[346660626,1735159831721,-394.14,0.00011278,2]
[346660627,1735159831730,-300.0,0.00011329,2]
[346660628,1735159831739,-263.33759742,0.0001133,2]
[346660629,1735159831751,-503.3895892,0.0001133,2]
[346660630,1735159831762,-15364.45742645,0.0001133,2]
[346660631,1735159831771,-180.58,0.00011624,2]
[346660632,1735159831779,-246.04,0.00011717,2]
[346660633,1735159831789,-246.04,0.0001172,2]
[346660634,1735159831798,-59.09461641,0.00011723,2]
[346660635,1735159831829,-186.94538359,0.00011723,2]
[346660636,1735159831838,-246.04,0.00011726,2]
[346660637,1735159831848,-214.00341881,0.00011729,2]
[346660638,1735159831860,-32.03658119,0.00011729,2]
[346660639,1735159831869,-246.04,0.00011732,2]
[346660640,1735159831878,-246.04,0.00011736,2]
[346660641,1735159831892,-246.04,0.00011739,2]
[346660642,1735159831902,-246.04,0.00011742,2]
[346660643,1735159831911,-246.04,0.00011745,2]
[346660644,1735159831920,-246.04,0.00011748,2]
[346660645,1735159831929,-246.04,0.00011751,2]
[346660646,1735159831938,-246.04,0.00011754,2]
[346660647,1735159831947,-246.04,0.00011757,2]
[346660648,1735159831956,-246.04,0.0001176,2]
[346660649,1735159831965,-246.04,0.00011763,2]
[346660650,1735159831974,-246.04,0.00011767,2]
[346660651,1735159831983,-246.04,0.0001177,2]
[346660652,1735159831992,-246.04,0.00011773,2]
[346660654,1735159832001,-246.04,0.00011776,2]
[346660656,1735159832011,-151.53550779,0.00011906,2]
[346660658,1735159832020,-151.0,0.00012006,2]
[346660660,1735159832029,-2512.37654973,0.00012031,2]
[346660662,1735159832040,-4442.056675,0.00012031,2]
[346660664,1735159832051,-3332.6871248,0.00012031,2]
[346660666,1735159832062,-6897.6099792,0.00012031,2]
[346660668,1735159832073,-1244.15535,0.00012031,2]
[346660671,1735159832084,-1303.491325,0.00012031,2]
[346660673,1735159832095,-380.0,0.00012031,2]
[346660675,1735159832107,-9154.62299627,0.00012031,2]
[346660677,1735159832116,-353.0,0.0001226,2]
[346660679,1735159832125,-225.0,0.0001226,2]
[346660681,1735159832138,-919.63,0.00012307,2]
[346660683,1735159832148,-350.576,0.0001233,2]
[346660684,1735159832157,-5041.26054855,0.0001238,2]
[346660687,1735159832168,-6497.1886532,0.0001238,2]
[346660693,1735159832220,-20395.9,0.0001238,2]
[346660695,1735159832232,-938.17050049,0.0001238,2]
[346660697,1735159832243,-476.28125776,0.0001238,2]
[346660699,1735159832255,-7267.26147128,0.0001238,2]
[346660701,1735159832264,-865.64788883,0.00012424,2]
[346660704,1735159832282,-1780.904326,0.00012424,2]
[346660708,1735159832308,-982.27316381,0.00012424,2]
[346660710,1735159832319,-3234.59175643,0.00012424,2]
[346660713,1735159832337,-66.15711742,0.00012424,2]
[346660715,1735159832346,-762.7447,0.00012424,2]
[346660717,1735159832358,-14638.26385595,0.00012425,2]
[346660719,1735159832367,-371.0,0.00012445,2]
[346660721,1735159832376,-6929.57425249,0.00012477,2]
[346660723,1735159832387,-14638.26385592,0.00012478,2]
[346660725,1735159832396,-1000.0,0.0001251,2]
[346660727,1735159832405,-170.66817172,0.00012515,2]
[346660729,1735159832414,-1139.97,0.00012523,2]
[346660731,1735159832423,-910.01,0.00012523,2]
[346660733,1735159832433,-777.48,0.00012523,2]
[346660735,1735159832442,-1736.65,0.00012523,2]
[346660737,1735159832451,-500.0,0.00012523,2]
[346660739,1735159832460,-500.0,0.00012523,2]
[346660741,1735159832469,-2055.86,0.00012523,2]
[346660743,1735159832478,-2614.96,0.00012523,2]
[346660744,1735159832487,-1414.67,0.00012523,2]
[346660746,1735159832497,-500.0,0.00012523,2]
[346660748,1735159832506,-8006.19,0.00012523,2]
[346660750,1735159832515,-1525.9,0.00012523,2]
[346660752,1735159832525,-2283.27,0.00012523,2]
[346660755,1735159832534,-2723.44,0.00012523,2]
[346660756,1735159832543,-3376.81,0.00012523,2]
[346660759,1735159832553,-1371.18,0.00012523,2]
[346660760,1735159832562,-1695.52,0.00012523,2]
[346660763,1735159832571,-1162.03,0.00012523,2]
[346660764,1735159832580,-3006.38,0.00012523,2]
[346660766,1735159832589,-10510.33,0.00012523,2]
[346660768,1735159832598,-1577.8,0.00012523,2]
[346660770,1735159832608,-500.0,0.00012523,2]
[346660772,1735159832617,-1145.35,0.00012523,2]
[346660774,1735159832626,-1172.38,0.00012523,2]
[346660776,1735159832639,-500.0,0.00012523,2]
[346660778,1735159832648,-815.15,0.00012523,2]
[346660780,1735159832657,-500.0,0.00012523,2]
[346660782,1735159832667,-500.0,0.00012523,2]
[346660784,1735159832676,-500.0,0.00012523,2]
[346660786,1735159832685,-500.0,0.00012523,2]
[346660788,1735159832694,-500.0,0.00012523,2]
[346660790,1735159832703,-500.0,0.00012524,2]
[346660792,1735159832714,-513.94953945,0.00012524,2]
[346660794,1735159832723,-500.0,0.00012524,2]
[346660796,1735159832732,-500.0,0.00012524,2]
[346660798,1735159832741,-500.0,0.00012524,2]
[346660800,1735159832750,-500.0,0.00012524,2]
[346660802,1735159832760,-500.0,0.00012524,2]
[346660804,1735159832769,-500.0,0.00012524,2]
[346660806,1735159832778,-500.0,0.00012524,2]
[346660808,1735159832787,-500.0,0.00012524,2]
[346660810,1735159832795,-500.0,0.00012524,2]
[346660812,1735159832804,-500.0,0.00012524,2]
[346660814,1735159832813,-542.9,0.00012524,2]
[346660816,1735159832822,-500.0,0.00012524,2]
[346660818,1735159832831,-583.45,0.00012524,2]
[346660820,1735159832840,-532.1,0.00012524,2]
[346660822,1735159832849,-500.0,0.00012524,2]
[346660824,1735159832858,-500.0,0.00012524,2]
[346660826,1735159832867,-500.0,0.00012524,2]
[346660828,1735159832875,-500.0,0.00012524,2]
[346660830,1735159832885,-500.0,0.00012524,2]
[346660831,1735159832895,-500.0,0.00012524,2]
[346660834,1735159832904,-500.0,0.00012524,2]
[346660835,1735159832913,-500.0,0.00012524,2]
[346660837,1735159832922,-500.0,0.00012524,2]
[346660839,1735159832931,-500.0,0.00012524,2]
[346660841,1735159832939,-500.0,0.00012524,2]
[346660843,1735159832948,-347.9223961,0.00012524,2]
[346660846,1735159832961,-153.9776039,0.00012524,2]
[346660848,1735159832970,-500.0,0.00012524,2]
[346660850,1735159832980,-500.0,0.00012524,2]
[346660851,1735159832989,-55.5183961,0.00012524,2]
[346660854,1735159833000,-444.4816039,0.00012524,2]
[346660856,1735159833009,-456.50656329,0.00012524,2]
[346660858,1735159833021,-73.29343671,0.00012524,2]
[346660860,1735159833030,-500.0,0.00012524,2]
[346660862,1735159833039,-500.0,0.00012524,2]
[346660864,1735159833048,-500.0,0.00012524,2]
[346660866,1735159833057,-500.0,0.00012524,2]
[346660867,1735159833067,-500.0,0.00012524,2]
[346660869,1735159833076,-500.0,0.00012524,2]
[346660871,1735159833085,-543.21,0.00012524,2]
[346660873,1735159833094,-500.0,0.00012524,2]
[346660875,1735159833103,-153.9675,0.00012524,2]
[346660878,1735159833113,-155.940262,0.00012524,2]
[346660880,1735159833122,-854.758158,0.00012524,2]
[346660882,1735159833131,-500.0,0.00012524,2]
[346660884,1735159833144,-1051.978082,0.00012524,2]
[346660885,1735159833153,-500.0,0.00012524,2]
[346660888,1735159833163,-500.0,0.00012524,2]
[346660890,1735159833173,-500.0,0.00012524,2]
[346660891,1735159833183,-500.0,0.00012524,2]
[346660894,1735159833193,-500.0,0.00012524,2]
[346660896,1735159833202,-500.0,0.00012524,2]
[346660898,1735159833212,-500.0,0.00012524,2]
[346660899,1735159833221,-500.0,0.00012524,2]
[346660902,1735159833231,-500.0,0.00012524,2]
[346660903,1735159833240,-500.0,0.00012524,2]
[346660905,1735159833250,-500.0,0.00012524,2]
[346660907,1735159833259,-500.0,0.00012524,2]
[346660909,1735159833269,-566.45,0.00012524,2]
[346660911,1735159833281,-500.0,0.00012524,2]
[346660914,1735159833290,-500.0,0.00012524,2]
[346660916,1735159833300,-500.0,0.00012524,2]
[346660917,1735159833309,-500.0,0.00012524,2]
[346660919,1735159833320,-650.52,0.00012524,2]
[346660921,1735159833330,-500.0,0.00012524,2]
[346660924,1735159833340,-500.0,0.00012524,2]
[346660926,1735159833349,-500.0,0.00012524,2]
[346660928,1735159833359,-500.0,0.00012524,2]
[346660930,1735159833370,-500.0,0.00012524,2]
[346660932,1735159833379,-500.0,0.00012524,2]
[346660934,1735159833389,-500.0,0.00012524,2]
[346660936,1735159833399,-500.0,0.00012524,2]
[346660938,1735159833407,-500.0,0.00012524,2]
[346660940,1735159833418,-500.0,0.00012524,2]
[346660942,1735159833427,-500.0,0.00012524,2]
[346660944,1735159833436,-500.0,0.00012524,2]
[346660946,1735159833445,-500.0,0.00012524,2]
[346660948,1735159833455,-500.0,0.00012524,2]
[346660949,1735159833465,-500.0,0.00012524,2]
[346660951,1735159833475,-500.0,0.00012524,2]
[346660953,1735159833484,-500.0,0.00012524,2]
[346660955,1735159833494,-500.0,0.00012524,2]
[346660957,1735159833504,-500.0,0.00012524,2]
[346660959,1735159833515,-500.0,0.00012524,2]
[346660961,1735159833525,-500.0,0.00012524,2]
[346660964,1735159833534,-777.79,0.00012524,2]
[346660966,1735159833544,-500.0,0.00012524,2]
[346660967,1735159833552,-500.0,0.00012524,2]
[346660969,1735159833562,-500.0,0.00012524,2]
[346660971,1735159833571,-500.0,0.00012524,2]
[346660973,1735159833580,-500.0,0.00012524,2]
[346660975,1735159833589,-500.0,0.00012524,2]
[346660977,1735159833599,-500.0,0.00012524,2]
[346660979,1735159833608,-500.0,0.00012524,2]
[346660981,1735159833618,-500.0,0.00012524,2]
[346660983,1735159833627,-10.6878078,0.00012524,2]
[346660986,1735159833643,-489.3121922,0.00012524,2]
[346660988,1735159833653,-500.0,0.00012524,2]
[346660990,1735159833662,-378.2402078,0.00012524,2]
[346661078,1735159837298,-500.0,0.00012523,2]
[346661079,1735159837307,-500.0,0.00012523,2]
[346661080,1735159837318,-526.72,0.00012523,2]
[346661081,1735159837327,-500.0,0.00012523,2]
[346661082,1735159837336,-500.0,0.00012523,2]
[346661083,1735159837347,-121.7597922,0.00012524,2]
[346661084,1735159837356,-500.0,0.00012524,2]
[346661085,1735159837366,-500.0,0.00012524,2]
[346661086,1735159837374,-456.42020928,0.00012524,2]
[346661087,1735159837383,-500.0,0.00012524,2]
[346661088,1735159837394,-500.0,0.00012524,2]
[346661089,1735159837403,-813.48,0.00012524,2]
[346661090,1735159837412,-500.0,0.00012524,2]
[346661091,1735159837420,-500.0,0.00012524,2]
[346661092,1735159837429,-500.0,0.00012524,2]
[346661093,1735159837439,-500.0,0.00012524,2]
[346661094,1735159837448,-500.0,0.00012524,2]
[346661095,1735159837457,-565.79,0.00012524,2]
[346661096,1735159837466,-500.0,0.00012524,2]
[346661097,1735159837475,-500.0,0.00012524,2]
[346661098,1735159837484,-500.0,0.00012524,2]
[346661099,1735159837493,-500.0,0.00012524,2]
[346661100,1735159837502,-353.6,0.00012524,2]
[346661101,1735159837511,-178.71291,0.00012524,2]
[346661102,1735159837521,-500.0,0.00012524,2]
[346661103,1735159837530,-500.0,0.00012524,2]
[346661104,1735159837539,-377.41093962,0.00012524,2]
[346661105,1735159837551,-122.58906038,0.00012524,2]
[346661106,1735159837560,-500.0,0.00012524,2]
[346661107,1735159837569,-500.0,0.00012524,2]
[346661108,1735159837578,-156.997418,0.00012524,2]
[346661109,1735159837587,-153.09084268,0.00012524,2]
[346661110,1735159837596,-500.0,0.00012524,2]
[346661111,1735159837605,-500.0,0.00012524,2]
[346661112,1735159837614,-500.0,0.00012524,2]
[346661113,1735159837623,-500.0,0.00012524,2]
[346661114,1735159837632,-500.0,0.00012524,2]
[346661115,1735159837643,-798.7,0.00012524,2]
[346661117,1735159837652,-500.0,0.00012524,2]
[346661118,1735159837661,-532.57359219,0.00012524,2]
[346661119,1735159837669,-500.0,0.00012524,2]
[346661120,1735159837678,-500.0,0.00012524,2]
[346661121,1735159837687,-500.0,0.00012524,2]
[346661123,1735159837696,-500.0,0.00012524,2]
[346661124,1735159837705,-519.48,0.00012524,2]
[346661126,1735159837714,-500.0,0.00012524,2]
[346661127,1735159837723,-500.0,0.00012524,2]
[346661128,1735159837732,-500.0,0.00012524,2]
[346661129,1735159837741,-500.0,0.00012524,2]
[346661130,1735159837750,-500.0,0.00012524,2]
[346661132,1735159837759,-500.0,0.00012524,2]
[346661133,1735159837768,-2226.85,0.00012524,2]
[346661135,1735159837777,-577.79,0.00012524,2]
[346661136,1735159837786,-500.0,0.00012524,2]
[346661137,1735159837796,-500.0,0.00012524,2]
[346661138,1735159837804,-500.0,0.00012524,2]
[346661139,1735159837813,-693.17,0.00012524,2]
[346661140,1735159837823,-500.0,0.00012524,2]
[346661141,1735159837831,-500.0,0.00012524,2]
[346661142,1735159837841,-500.0,0.00012524,2]
[346661143,1735159837850,-500.0,0.00012524,2]
[346661144,1735159837858,-500.0,0.00012524,2]
[346661145,1735159837868,-500.0,0.00012524,2]
[346661146,1735159837877,-500.0,0.00012524,2]
[346661147,1735159837886,-500.0,0.00012524,2]
[346661148,1735159837895,-500.0,0.00012524,2]
[346661149,1735159837904,-685.84,0.00012524,2]
[346661150,1735159837913,-500.0,0.00012524,2]
[346661151,1735159837922,-500.0,0.00012524,2]
[346661152,1735159837931,-688.07,0.00012524,2]
[346661153,1735159837939,-500.0,0.00012524,2]
[346661154,1735159837948,-500.0,0.00012524,2]
[346661155,1735159837957,-500.0,0.00012524,2]
[346661156,1735159837966,-500.0,0.00012524,2]
[346661157,1735159837975,-500.0,0.00012524,2]
[346661158,1735159837984,-585.71122634,0.00012524,2]
[346661159,1735159837994,-4167.05,0.00012524,2]
[346661160,1735159838003,-500.0,0.00012524,2]
[346661161,1735159838012,-500.0,0.00012524,2]
[346661162,1735159838021,-955.65,0.00012524,2]
[346661163,1735159838031,-500.0,0.00012524,2]
[346661164,1735159838041,-500.0,0.00012524,2]
[346661165,1735159838051,-689.24,0.00012524,2]
[346661166,1735159838060,-500.0,0.00012524,2]
[346661167,1735159838070,-500.0,0.00012524,2]
[346661168,1735159838081,-1845.55,0.00012524,2]
[346661169,1735159838090,-500.0,0.00012524,2]
[346661170,1735159838099,-500.0,0.00012524,2]
[346661171,1735159838108,-500.0,0.00012524,2]
[346661172,1735159838118,-159.061513,0.00012524,2]
[346661173,1735159838127,-500.0,0.00012524,2]
[346661174,1735159838138,-500.0,0.00012524,2]
[346661175,1735159838147,-500.0,0.00012524,2]
[346661176,1735159838156,-1496.48,0.00012524,2]
[346661177,1735159838166,-500.0,0.00012524,2]
[346661178,1735159838176,-500.0,0.00012524,2]
[346661179,1735159838185,-500.0,0.00012524,2]
[346661180,1735159838194,-1361.71,0.00012524,2]
[346661181,1735159838204,-500.0,0.00012524,2]
[346661182,1735159838215,-500.0,0.00012524,2]
[346661183,1735159838223,-1012.2,0.00012524,2]
[346661184,1735159838232,-500.0,0.00012524,2]
[346661185,1735159838242,-153.807129,0.00012524,2]
[346661186,1735159838252,-500.0,0.00012524,2]
[346661187,1735159838261,-500.0,0.00012524,2]
[346661188,1735159838271,-565.80880166,0.00012524,2]
[346661189,1735159838284,-500.0,0.00012524,2]
[346661190,1735159838294,-798.99,0.00012524,2]
[346661191,1735159838304,-2936.89,0.00012524,2]
[346661192,1735159838314,-500.0,0.00012524,2]
[346661193,1735159838325,-500.0,0.00012524,2]
[346661194,1735159838334,-2280.17,0.00012524,2]
[346661195,1735159838343,-500.0,0.00012524,2]
[346661196,1735159838354,-500.0,0.00012524,2]
[346661197,1735159838363,-500.0,0.00012524,2]
[346661198,1735159838372,-500.0,0.00012524,2]
[346661199,1735159838381,-1263.36,0.00012524,2]
[346661200,1735159838390,-500.0,0.00012524,2]
[346661201,1735159838399,-500.0,0.00012524,2]
[346661202,1735159838408,-728.14,0.00012524,2]
[346661203,1735159838417,-500.0,0.00012524,2]
[346661204,1735159838426,-3815.21,0.00012524,2]
[346661205,1735159838435,-500.0,0.00012524,2]
[346661206,1735159838444,-1840.51,0.00012524,2]
[346661207,1735159838453,-500.0,0.00012524,2]
[346661208,1735159838462,-500.0,0.00012524,2]
[346661209,1735159838471,-556.76239662,0.00012524,2]